[Event "Titled Tuesday Blitz June 27 Early 2023"]
[White "Grossboss19"]
[Black "Goltsev, Dmitry"]
[BlackFideId "24176710"]
[WhiteElo "2438"]
[BlackElo "2735"]
[Result "1/2-1/2"]
[Round "1"]
[TimeControl "180+2"]
[Date "2023.06.27"]
[WhiteClock "0:00:08"]
[BlackClock "0:00:08"]
[Board "100"]

1. e4 {[%clk 0:02:54]}  e6 {[%clk 0:03:00]} 2. Nf3 {[%clk 0:02:53]}  d5 {[%clk 0:03:01]} 3. Nc3 {[%clk 0:02:49]}  Nf6 {[%clk 0:03:01]} 4. Bd3 {[%clk 0:02:42]}  c5 {[%clk 0:03:00]} 5. exd5 {[%clk 0:02:40]}  exd5 {[%clk 0:03:01]} 6. O-O {[%clk 0:02:40]}  Be7 {[%clk 0:03:01]} 7. Bb5+ {[%clk 0:02:38]}  Nc6 {[%clk 0:03:00]} 8. d4 {[%clk 0:02:38]}  O-O {[%clk 0:02:59]} 9. dxc5 {[%clk 0:02:33]}  Bxc5 {[%clk 0:03:00]} 10. Bg5 {[%clk 0:02:30]}  Bg4 {[%clk 0:03:00]} 11. Bxf6 {[%clk 0:02:19]}  Qxf6 {[%clk 0:03:01]} 12. Nxd5 {[%clk 0:02:19]}  Qxb2 {[%clk 0:02:59]} 13. Rb1 {[%clk 0:02:18]}  Qxa2 {[%clk 0:02:57]} 14. h3 {[%clk 0:02:15]}  Bxf3 {[%clk 0:02:54]} 15. Qxf3 {[%clk 0:02:14]}  Nd4 {[%clk 0:02:52]} 16. Qe4 {[%clk 0:02:10]}  f5 {[%clk 0:02:27]} 17. Ne7+ {[%clk 0:01:56]}  Kh8 {[%clk 0:02:17]} 18. Qe5 {[%clk 0:01:46]}  Bxe7 {[%clk 0:02:11]} 19. Qxe7 {[%clk 0:01:46]}  Rf7 {[%clk 0:02:07]} 20. Qc5 {[%clk 0:01:34]}  Nxb5 {[%clk 0:02:00]} 21. Rxb5 {[%clk 0:01:34]}  h6 {[%clk 0:01:55]} 22. Rfb1 {[%clk 0:01:26]}  Qe6 {[%clk 0:01:52]} 23. Rxb7 {[%clk 0:01:21]}  Rxb7 {[%clk 0:01:52]} 24. Rxb7 {[%clk 0:01:22]}  a5 {[%clk 0:01:53]} 25. Rb3 {[%clk 0:01:16]}  a4 {[%clk 0:01:43]} 26. Ra3 {[%clk 0:01:16]}  Rc8 {[%clk 0:01:40]} 27. Qd4 {[%clk 0:01:07]}  Rxc2 {[%clk 0:01:32]} 28. Rxa4 {[%clk 0:01:03]}  Qe1+ {[%clk 0:01:32]} 29. Kh2 {[%clk 0:01:03]}  Qxf2 {[%clk 0:01:33]} 30. Qxf2 {[%clk 0:01:02]}  Rxf2 {[%clk 0:01:33]} 31. Kg3 {[%clk 0:01:01]}  Rf1 {[%clk 0:01:29]} 32. h4 {[%clk 0:01:00]}  Kh7 {[%clk 0:01:29]} 33. Ra6 {[%clk 0:01:00]}  Rb1 {[%clk 0:01:20]} 34. Kf4 {[%clk 0:00:55]}  Rf1+ {[%clk 0:01:18]} 35. Kg3 {[%clk 0:00:55]}  Kg8 {[%clk 0:01:16]} 36. Ra7 {[%clk 0:00:53]}  Rb1 {[%clk 0:01:12]} 37. Kf4 {[%clk 0:00:51]}  Rb5 {[%clk 0:01:03]} 38. h5 {[%clk 0:00:47]}  Rb4+ {[%clk 0:00:50]} 39. Kxf5 {[%clk 0:00:42]}  Rb5+ {[%clk 0:00:50]} 40. Kf4 {[%clk 0:00:38]}  Rxh5 {[%clk 0:00:49]} 41. Rb7 {[%clk 0:00:38]}  Rg5 {[%clk 0:00:49]} 42. g3 {[%clk 0:00:37]}  Kh7 {[%clk 0:00:48]} 43. Ra7 {[%clk 0:00:37]}  Kg6 {[%clk 0:00:48]} 44. Ra6+ {[%clk 0:00:37]}  Kh5 {[%clk 0:00:48]} 45. Ra1 {[%clk 0:00:34]}  Rg4+ {[%clk 0:00:36]} 46. Kf3 {[%clk 0:00:33]}  Rb4 {[%clk 0:00:35]} 47. Ra5+ {[%clk 0:00:33]}  g5 {[%clk 0:00:33]} 48. Ra6 {[%clk 0:00:28]}  Rb3+ {[%clk 0:00:31]} 49. Kf2 {[%clk 0:00:24]}  Rd3 {[%clk 0:00:30]} 50. Rb6 {[%clk 0:00:23]}  Rd2+ {[%clk 0:00:28]} 51. Ke3 {[%clk 0:00:22]}  Rd8 {[%clk 0:00:25]} 52. Kf3 {[%clk 0:00:19]}  Rf8+ {[%clk 0:00:25]} 53. Kg2 {[%clk 0:00:17]}  Kg4 {[%clk 0:00:24]} 54. Rxh6 {[%clk 0:00:14]}  Rf3 {[%clk 0:00:23]} 55. Rh3 {[%clk 0:00:13]}  Ra3 {[%clk 0:00:22]} 56. Rh2 {[%clk 0:00:13]}  Ra1 {[%clk 0:00:12]} 57. Kf2 {[%clk 0:00:10]}  Ra2+ {[%clk 0:00:11]} 58. Kg1 {[%clk 0:00:11]}  Ra3 {[%clk 0:00:12]} 59. Rg2 {[%clk 0:00:10]}  Kh3 {[%clk 0:00:11]} 60. Rh2+ {[%clk 0:00:09]}  Kxg3 {[%clk 0:00:11]} 61. Rg2+ {[%clk 0:00:10]}  Kf4 {[%clk 0:00:11]} 62. Rf2+ {[%clk 0:00:10]}  Ke5 {[%clk 0:00:09]} 63. Kg2 {[%clk 0:00:10]}  Ke4 {[%clk 0:00:08]} 64. Re2+ {[%clk 0:00:11]}  Kf4 {[%clk 0:00:08]} 65. Rf2+ {[%clk 0:00:11]}  Kg4 {[%clk 0:00:09]} 66. Rb2 {[%clk 0:00:12]}  Ra4 {[%clk 0:00:09]} 67. Rc2 {[%clk 0:00:12]}  Rf4 {[%clk 0:00:10]} 68. Rb2 {[%clk 0:00:12]}  Rc4 {[%clk 0:00:10]} 69. Ra2 {[%clk 0:00:13]}  Kh4 {[%clk 0:00:11]} 70. Rd2 {[%clk 0:00:12]}  Rg4+ {[%clk 0:00:11]} 71. Kh2 {[%clk 0:00:12]}  Rg3 {[%clk 0:00:12]} 72. Rd4+ {[%clk 0:00:12]}  g4 {[%clk 0:00:12]} 73. Rd8 {[%clk 0:00:12]}  Rf3 {[%clk 0:00:11]} 74. Rh8+ {[%clk 0:00:12]}  Kg5 {[%clk 0:00:12]} 75. Rg8+ {[%clk 0:00:12]}  Kf4 {[%clk 0:00:13]} 76. Kg2 {[%clk 0:00:12]}  Rg3+ {[%clk 0:00:13]} 77. Kf2 {[%clk 0:00:13]}  Ra3 {[%clk 0:00:11]} 78. Rf8+ {[%clk 0:00:12]}  Kg5 {[%clk 0:00:11]} 79. Rg8+ {[%clk 0:00:12]}  Kf5 {[%clk 0:00:11]} 80. Rf8+ {[%clk 0:00:13]}  Ke4 {[%clk 0:00:11]} 81. Re8+ {[%clk 0:00:13]}  Kf5 {[%clk 0:00:10]} 82. Rf8+ {[%clk 0:00:13]}  Ke6 {[%clk 0:00:10]} 83. Kg2 {[%clk 0:00:11]}  Rb3 {[%clk 0:00:08]} 84. Rf4 {[%clk 0:00:11]}  g3 {[%clk 0:00:05]} 85. Rf3 {[%clk 0:00:11]}  Rb2+ {[%clk 0:00:05]} 86. Kxg3 {[%clk 0:00:11]}  Ke5 {[%clk 0:00:06]} 87. Re3+ {[%clk 0:00:12]}  Kf5 {[%clk 0:00:07]} 88. Rf3+ {[%clk 0:00:12]}  Kg5 {[%clk 0:00:07]} 89. Rd3 {[%clk 0:00:08]}  Rb5 {[%clk 0:00:07]} 90. Rc3 {[%clk 0:00:08]}  Rd5 {[%clk 0:00:07]} 91. Kf3 {[%clk 0:00:08]}  Kf6 {[%clk 0:00:07]} 92. Ke4 {[%clk 0:00:08]}  Rh5 {[%clk 0:00:07]} 93. Kd4 {[%clk 0:00:09]}  Ke6 {[%clk 0:00:06]} 94. Rg3 {[%clk 0:00:07]}  Rh4+ {[%clk 0:00:07]} 95. Ke3 {[%clk 0:00:08]}  Kf5 {[%clk 0:00:07]} 96. Rf3+ {[%clk 0:00:07]}  Ke5 {[%clk 0:00:07]} 97. Rg3 {[%clk 0:00:08]}  Re4+ {[%clk 0:00:08]} 98. Kf3 {[%clk 0:00:08]}  Kf5 {[%clk 0:00:07]} 99. Rg5+ {[%clk 0:00:08]}  Kxg5 {[%clk 0:00:08]} 100. Kxe4 {[%clk 0:00:08]} 1/2-1/2


[Site "https://www.chess.com"]

[Event "Titled Tuesday Blitz June 27 Early 2023"]
[White "Mahdavi, Reza"]
[Black "KorolDimitriy75"]
[WhiteFideId "12595926"]
[WhiteElo "2735"]
[BlackElo "2437"]
[Result "1-0"]
[Round "1"]
[TimeControl "180+2"]
[Date "2023.06.27"]
[WhiteClock "0:01:36"]
[BlackClock "0:00:03"]
[Board "101"]

1. e4 {[%clk 0:03:00]}  c5 {[%clk 0:03:00]} 2. Nf3 {[%clk 0:02:57]}  d6 {[%clk 0:03:00]} 3. d4 {[%clk 0:02:55]}  cxd4 {[%clk 0:03:01]} 4. Qxd4 {[%clk 0:02:56]}  a6 {[%clk 0:03:00]} 5. Be2 {[%clk 0:02:43]}  Nc6 {[%clk 0:03:00]} 6. Qe3 {[%clk 0:02:44]}  g6 {[%clk 0:02:59]} 7. h3 {[%clk 0:02:43]}  Bg7 {[%clk 0:03:00]} 8. O-O {[%clk 0:02:44]}  Nf6 {[%clk 0:03:00]} 9. c4 {[%clk 0:02:41]}  O-O {[%clk 0:02:59]} 10. Nc3 {[%clk 0:02:42]}  Nd7 {[%clk 0:02:51]} 11. b3 {[%clk 0:02:31]}  Nc5 {[%clk 0:02:43]} 12. Bb2 {[%clk 0:02:31]}  Bd7 {[%clk 0:02:35]} 13. Rfd1 {[%clk 0:02:31]}  Qa5 {[%clk 0:02:24]} 14. Rab1 {[%clk 0:02:27]}  Rfc8 {[%clk 0:02:22]} 15. Nd5 {[%clk 0:02:17]}  Bxb2 {[%clk 0:01:46]} 16. Rxb2 {[%clk 0:02:18]}  Qd8 {[%clk 0:01:19]} 17. b4 {[%clk 0:02:04]}  Na4 {[%clk 0:01:17]} 18. Rbd2 {[%clk 0:02:04]}  Be6 {[%clk 0:01:02]} 19. Qh6 {[%clk 0:01:58]}  Qf8 {[%clk 0:00:50]} 20. Qe3 {[%clk 0:01:51]}  Bxd5 {[%clk 0:00:43]} 21. exd5 {[%clk 0:01:49]}  Nxb4 {[%clk 0:00:44]} 22. Qb3 {[%clk 0:01:49]}  Nxa2 {[%clk 0:00:20]} 23. Rxa2 {[%clk 0:01:35]}  Nc5 {[%clk 0:00:19]} 24. Qe3 {[%clk 0:01:36]}  a5 {[%clk 0:00:18]} 25. Rb1 {[%clk 0:01:36]}  a4 {[%clk 0:00:18]} 26. Bd1 {[%clk 0:01:36]}  Ra7 {[%clk 0:00:18]} 27. Nd4 {[%clk 0:01:36]}  Qd8 {[%clk 0:00:15]} 28. Nb5 {[%clk 0:01:36]}  Ra6 {[%clk 0:00:14]} 29. Rba1 {[%clk 0:01:36]}  Rca8 {[%clk 0:00:14]} 30. Nc3 {[%clk 0:01:36]}  a3 {[%clk 0:00:03]} 31. Nb5 {[%clk 0:01:36]} 1-0


[Site "https://www.chess.com"]

[Event "Titled Tuesday Blitz June 27 Early 2023"]
[White "Itkis, Boris"]
[Black "Renjith, Sravan"]
[WhiteFideId "1209167"]
[BlackFideId "4306783"]
[WhiteElo "2428"]
[BlackElo "2729"]
[Result "0-1"]
[Round "1"]
[TimeControl "180+2"]
[Date "2023.06.27"]
[WhiteClock "0:01:32"]
[BlackClock "0:02:02"]
[Board "104"]

1. c4 {[%clk 0:03:00]}  Nf6 {[%clk 0:02:58]} 2. Nf3 {[%clk 0:03:01]}  e6 {[%clk 0:02:58]} 3. e3 {[%clk 0:03:00]}  d5 {[%clk 0:02:58]} 4. b3 {[%clk 0:03:01]}  c5 {[%clk 0:02:58]} 5. Bb2 {[%clk 0:03:01]}  Nc6 {[%clk 0:02:59]} 6. cxd5 {[%clk 0:03:01]}  exd5 {[%clk 0:02:59]} 7. Bb5 {[%clk 0:03:02]}  Be7 {[%clk 0:02:59]} 8. O-O {[%clk 0:03:00]}  O-O {[%clk 0:02:59]} 9. d4 {[%clk 0:03:01]}  a6 {[%clk 0:02:59]} 10. Bxc6 {[%clk 0:02:59]}  bxc6 {[%clk 0:02:59]} 11. Nbd2 {[%clk 0:02:58]}  Rb8 {[%clk 0:02:53]} 12. dxc5 {[%clk 0:02:57]}  Bxc5 {[%clk 0:02:53]} 13. Rc1 {[%clk 0:02:57]}  Qe7 {[%clk 0:02:51]} 14. Bxf6 {[%clk 0:02:37]}  gxf6 {[%clk 0:02:45]} 15. Nd4 {[%clk 0:02:38]}  Bxd4 {[%clk 0:02:34]} 16. exd4 {[%clk 0:02:39]}  Bd7 {[%clk 0:02:33]} 17. Re1 {[%clk 0:02:33]}  Qd6 {[%clk 0:02:32]} 18. Nf3 {[%clk 0:02:24]}  Kh8 {[%clk 0:02:32]} 19. Qd3 {[%clk 0:02:15]}  Rg8 {[%clk 0:02:31]} 20. Re3 {[%clk 0:02:13]}  Rg6 {[%clk 0:02:19]} 21. Nh4 {[%clk 0:02:11]}  Rg4 {[%clk 0:02:18]} 22. Nf5 {[%clk 0:01:37]}  Qf4 {[%clk 0:02:03]} 23. Rf3 {[%clk 0:01:32]}  Qxc1+ {[%clk 0:02:02]} 0-1


[Site "https://www.chess.com"]

[Event "Titled Tuesday Blitz June 27 Early 2023"]
[White "Atakhan, Abtin"]
[Black "LeoLV10"]
[WhiteFideId "22502203"]
[WhiteElo "2729"]
[BlackElo "2424"]
[Result "1/2-1/2"]
[Round "1"]
[TimeControl "180+2"]
[Date "2023.06.27"]
[WhiteClock "0:00:03"]
[BlackClock "0:00:09"]
[Board "105"]

1. Nf3 {[%clk 0:01:53]}  d5 {[%clk 0:02:57]} 2. g3 {[%clk 0:01:53]}  Nf6 {[%clk 0:02:55]} 3. Bg2 {[%clk 0:01:54]}  g6 {[%clk 0:02:55]} 4. b3 {[%clk 0:01:53]}  Bg7 {[%clk 0:02:56]} 5. Bb2 {[%clk 0:01:54]}  O-O {[%clk 0:02:56]} 6. c4 {[%clk 0:01:52]}  c6 {[%clk 0:02:56]} 7. O-O {[%clk 0:01:51]}  Re8 {[%clk 0:02:56]} 8. d4 {[%clk 0:01:47]}  Nbd7 {[%clk 0:02:50]} 9. cxd5 {[%clk 0:01:46]}  cxd5 {[%clk 0:02:48]} 10. Nc3 {[%clk 0:01:45]}  a6 {[%clk 0:02:48]} 11. Ne5 {[%clk 0:01:44]}  e6 {[%clk 0:02:47]} 12. f4 {[%clk 0:01:40]}  Nb6 {[%clk 0:02:40]} 13. Ba3 {[%clk 0:01:34]}  Bd7 {[%clk 0:02:36]} 14. Rc1 {[%clk 0:01:29]}  Rc8 {[%clk 0:02:35]} 15. Qd2 {[%clk 0:01:26]}  Bc6 {[%clk 0:02:31]} 16. Bb4 {[%clk 0:01:17]}  Nbd7 {[%clk 0:02:27]} 17. Kh1 {[%clk 0:01:06]}  Nxe5 {[%clk 0:02:13]} 18. fxe5 {[%clk 0:01:05]}  Ne4 {[%clk 0:02:14]} 19. Nxe4 {[%clk 0:00:52]}  dxe4 {[%clk 0:02:14]} 20. Bd6 {[%clk 0:00:51]}  f5 {[%clk 0:01:58]} 21. exf6 {[%clk 0:00:44]}  Bxf6 {[%clk 0:01:58]} 22. e3 {[%clk 0:00:43]}  Kg7 {[%clk 0:01:38]} 23. Rxf6 {[%clk 0:00:40]}  Kxf6 {[%clk 0:01:38]} 24. Be5+ {[%clk 0:00:37]}  Ke7 {[%clk 0:01:37]} 25. Qb4+ {[%clk 0:00:32]}  Kf7 {[%clk 0:01:35]} 26. Rf1+ {[%clk 0:00:25]}  Kg8 {[%clk 0:01:34]} 27. Bh3 {[%clk 0:00:21]}  Bd5 {[%clk 0:01:30]} 28. Qd2 {[%clk 0:00:16]}  Rf8 {[%clk 0:01:29]} 29. Re1 {[%clk 0:00:14]}  Rf3 {[%clk 0:01:20]} 30. Bg2 {[%clk 0:00:13]}  Rf7 {[%clk 0:01:19]} 31. h4 {[%clk 0:00:12]}  Qf8 {[%clk 0:01:14]} 32. Kg1 {[%clk 0:00:11]}  Qe7 {[%clk 0:01:04]} 33. Rc1 {[%clk 0:00:11]}  Rcf8 {[%clk 0:01:01]} 34. Rc7 {[%clk 0:00:08]}  Qe8 {[%clk 0:00:58]} 35. Rxf7 {[%clk 0:00:08]}  Qxf7 {[%clk 0:00:59]} 36. Qc2 {[%clk 0:00:07]}  h5 {[%clk 0:00:42]} 37. Bf4 {[%clk 0:00:06]}  Qf5 {[%clk 0:00:38]} 38. Kh2 {[%clk 0:00:05]}  Kh7 {[%clk 0:00:37]} 39. Qc7+ {[%clk 0:00:04]}  Qf7 {[%clk 0:00:38]} 40. Qd6 {[%clk 0:00:04]}  Rc8 {[%clk 0:00:32]} 41. Qe5 {[%clk 0:00:03]}  Rc2 {[%clk 0:00:29]} 42. a4 {[%clk 0:00:02]}  Bxb3 {[%clk 0:00:24]} 43. a5 {[%clk 0:00:01]}  Bd5 {[%clk 0:00:24]} 44. Kg1 {[%clk 0:00:02]}  Qe7 {[%clk 0:00:20]} 45. Qb8 {[%clk 0:00:02]}  Qb4 {[%clk 0:00:17]} 46. Be5 {[%clk 0:00:03]}  Qe1+ {[%clk 0:00:16]} 47. Kh2 {[%clk 0:00:03]}  Rxg2+ {[%clk 0:00:16]} 48. Kxg2 {[%clk 0:00:04]}  Qe2+ {[%clk 0:00:17]} 49. Kh3 {[%clk 0:00:03]}  Qf1+ {[%clk 0:00:17]} 50. Kh2 {[%clk 0:00:04]}  Qf2+ {[%clk 0:00:17]} 51. Kh1 {[%clk 0:00:04]}  Qf1+ {[%clk 0:00:16]} 52. Kh2 {[%clk 0:00:04]}  Qf2+ {[%clk 0:00:16]} 53. Kh1 {[%clk 0:00:04]}  Qe1+ {[%clk 0:00:10]} 54. Kg2 {[%clk 0:00:04]}  Qe2+ {[%clk 0:00:10]} 55. Kh3 {[%clk 0:00:03]}  Qg4+ {[%clk 0:00:09]} 56. Kh2 {[%clk 0:00:03]}  Qe2+ {[%clk 0:00:09]} 57. Kh3 {[%clk 0:00:03]} 1/2-1/2


[Site "https://www.chess.com"]

[Event "Titled Tuesday Blitz June 27 Early 2023"]
[White "Csonka, Balazs"]
[Black "Large, Peter G"]
[WhiteFideId "742910"]
[BlackFideId "400866"]
[WhiteElo "2727"]
[BlackElo "2421"]
[Result "1-0"]
[Round "1"]
[TimeControl "180+2"]
[Date "2023.06.27"]
[WhiteClock "0:00:12"]
[BlackClock "0:00:00"]
[Board "107"]

1. d4 {[%clk 0:02:55]}  e6 {[%clk 0:02:58]} 2. e4 {[%clk 0:02:50]}  d5 {[%clk 0:02:56]} 3. e5 {[%clk 0:02:51]}  Ne7 {[%clk 0:02:56]} 4. Nd2 {[%clk 0:02:48]}  b6 {[%clk 0:02:55]} 5. c3 {[%clk 0:02:48]}  Qd7 {[%clk 0:02:55]} 6. h4 {[%clk 0:02:46]}  h5 {[%clk 0:02:52]} 7. Ndf3 {[%clk 0:02:42]}  Ba6 {[%clk 0:02:48]} 8. Bxa6 {[%clk 0:02:41]}  Nxa6 {[%clk 0:02:48]} 9. Ne2 {[%clk 0:02:37]}  Nf5 {[%clk 0:02:38]} 10. Ng3 {[%clk 0:02:30]}  Nxg3 {[%clk 0:02:37]} 11. fxg3 {[%clk 0:02:31]}  c5 {[%clk 0:02:37]} 12. O-O {[%clk 0:02:30]}  Be7 {[%clk 0:02:14]} 13. Bg5 {[%clk 0:02:22]}  f6 {[%clk 0:02:10]} 14. exf6 {[%clk 0:02:17]}  gxf6 {[%clk 0:02:09]} 15. Bf4 {[%clk 0:02:17]}  O-O-O {[%clk 0:01:21]} 16. Qe2 {[%clk 0:01:43]}  Nc7 {[%clk 0:01:06]} 17. Bxc7 {[%clk 0:01:39]}  Kxc7 {[%clk 0:01:05]} 18. Rae1 {[%clk 0:01:38]}  Bd6 {[%clk 0:00:57]} 19. Qxe6 {[%clk 0:01:26]}  Bxg3 {[%clk 0:00:57]} 20. Re2 {[%clk 0:01:22]}  Rde8 {[%clk 0:00:37]} 21. Qxf6 {[%clk 0:01:00]}  Rhf8 {[%clk 0:00:29]} 22. Qh6 {[%clk 0:01:00]}  Rxe2 {[%clk 0:00:17]} 23. Qxf8 {[%clk 0:00:59]}  Qg4 {[%clk 0:00:10]} 24. Kh1 {[%clk 0:00:36]}  Rxg2 {[%clk 0:00:08]} 25. Qe7+ {[%clk 0:00:27]}  Kc6 {[%clk 0:00:08]} 26. Qe8+ {[%clk 0:00:18]}  Kb7 {[%clk 0:00:07]} 27. Kxg2 {[%clk 0:00:16]}  Bf4+ {[%clk 0:00:06]} 28. Kf2 {[%clk 0:00:15]}  Qg3+ {[%clk 0:00:07]} 29. Ke2 {[%clk 0:00:15]}  Qg2+ {[%clk 0:00:02]} 30. Rf2 {[%clk 0:00:15]}  Qh1 {[%clk 0:00:03]} 31. Qd7+ {[%clk 0:00:13]}  Ka6 {[%clk 0:00:02]} 32. Qa4+ {[%clk 0:00:13]}  Kb7 {[%clk 0:00:03]} 33. Qd7+ {[%clk 0:00:14]}  Ka6 {[%clk 0:00:03]} 34. Qxd5 {[%clk 0:00:14]}  Qc1 {[%clk 0:00:00]} 35. Qe4 {[%clk 0:00:12]} 1-0


[Site "https://www.chess.com"]

[Event "Titled Tuesday Blitz June 27 Early 2023"]
[White "Srdanovic, Jovana"]
[Black "Lortkipanidze, Nodar"]
[WhiteFideId "954810"]
[BlackFideId "13604058"]
[WhiteElo "2421"]
[BlackElo "2724"]
[Result "0-1"]
[Round "1"]
[TimeControl "180+2"]
[Date "2023.06.27"]
[WhiteClock "0:00:05"]
[BlackClock "0:00:16"]
[Board "108"]

1. d4 {[%clk 0:02:59]}  e6 {[%clk 0:02:59]} 2. c4 {[%clk 0:02:58]}  b6 {[%clk 0:02:59]} 3. f3 {[%clk 0:02:47]}  Bb7 {[%clk 0:02:58]} 4. Nc3 {[%clk 0:02:44]}  f5 {[%clk 0:02:58]} 5. d5 {[%clk 0:02:40]}  Qh4+ {[%clk 0:02:46]} 6. g3 {[%clk 0:02:32]}  Qxc4 {[%clk 0:02:46]} 7. e4 {[%clk 0:02:30]}  Qc5 {[%clk 0:02:45]} 8. Bf4 {[%clk 0:02:20]}  Nf6 {[%clk 0:02:15]} 9. Nb5 {[%clk 0:02:07]}  Na6 {[%clk 0:02:14]} 10. Rc1 {[%clk 0:02:06]}  Qb4+ {[%clk 0:02:09]} 11. Bd2 {[%clk 0:02:00]}  Qxb2 {[%clk 0:02:06]} 12. Rc2 {[%clk 0:01:39]}  Qxc2 {[%clk 0:01:30]} 13. Qxc2 {[%clk 0:01:39]}  Bc5 {[%clk 0:01:30]} 14. Nh3 {[%clk 0:01:31]}  fxe4 {[%clk 0:01:28]} 15. fxe4 {[%clk 0:01:31]}  exd5 {[%clk 0:01:28]} 16. e5 {[%clk 0:01:26]}  Ne4 {[%clk 0:01:21]} 17. Bg2 {[%clk 0:01:24]}  O-O-O {[%clk 0:01:21]} 18. Nxa7+ {[%clk 0:01:17]}  Kb8 {[%clk 0:01:21]} 19. Nb5 {[%clk 0:01:17]}  Rde8 {[%clk 0:01:22]} 20. Kd1 {[%clk 0:01:13]}  Rhf8 {[%clk 0:01:14]} 21. Re1 {[%clk 0:01:11]}  h6 {[%clk 0:01:11]} 22. Nf4 {[%clk 0:01:08]}  g5 {[%clk 0:01:11]} 23. Nd3 {[%clk 0:01:07]}  Nf2+ {[%clk 0:01:07]} 24. Nxf2 {[%clk 0:00:51]}  Rxf2 {[%clk 0:01:06]} 25. Bh3 {[%clk 0:00:50]}  Nb4 {[%clk 0:01:03]} 26. Qg6 {[%clk 0:00:49]}  Rd8 {[%clk 0:00:54]} 27. Rf1 {[%clk 0:00:32]}  Rxh2 {[%clk 0:00:53]} 28. Bxd7 {[%clk 0:00:28]}  Rxd7 {[%clk 0:00:40]} 29. Qe8+ {[%clk 0:00:21]}  Bc8 {[%clk 0:00:40]} 30. Rf7 {[%clk 0:00:18]}  Rxf7 {[%clk 0:00:31]} 31. Qxf7 {[%clk 0:00:19]}  Na6 {[%clk 0:00:26]} 32. e6 {[%clk 0:00:18]}  Rf2 {[%clk 0:00:26]} 33. Qg6 {[%clk 0:00:12]}  Rf8 {[%clk 0:00:22]} 34. Qg7 {[%clk 0:00:12]}  Re8 {[%clk 0:00:21]} 35. Qxh6 {[%clk 0:00:11]}  Rxe6 {[%clk 0:00:21]} 36. Qxg5 {[%clk 0:00:11]}  Re4 {[%clk 0:00:20]} 37. Bf4 {[%clk 0:00:11]}  Re8 {[%clk 0:00:16]} 38. Qxd5 {[%clk 0:00:08]}  Bb7 {[%clk 0:00:14]} 39. Qd7 {[%clk 0:00:08]}  Rc8 {[%clk 0:00:15]} 40. g4 {[%clk 0:00:07]}  Bf3+ {[%clk 0:00:14]} 41. Ke1 {[%clk 0:00:07]}  Kb7 {[%clk 0:00:15]} 42. g5 {[%clk 0:00:07]}  Bc6 {[%clk 0:00:16]} 43. Qe6 {[%clk 0:00:06]}  Bxb5 {[%clk 0:00:16]} 44. g6 {[%clk 0:00:06]}  Re8 {[%clk 0:00:16]} 45. Qe7 {[%clk 0:00:05]}  Rxe7+ {[%clk 0:00:16]} 0-1


[Site "https://www.chess.com"]

[Event "Titled Tuesday Blitz June 27 Early 2023"]
[White "Quintiliano Pinto, Renato R."]
[Black "Lima, Kleyton Alcantara"]
[WhiteFideId "2117568"]
[BlackFideId "22718397"]
[WhiteElo "2724"]
[BlackElo "2420"]
[Result "1-0"]
[Round "1"]
[TimeControl "180+2"]
[Date "2023.06.27"]
[WhiteClock "0:02:05"]
[BlackClock "0:01:57"]
[Board "109"]

1. Nf3 {[%clk 0:02:58]}  d5 {[%clk 0:02:57]} 2. b3 {[%clk 0:02:56]}  Nf6 {[%clk 0:02:54]} 3. Bb2 {[%clk 0:02:56]}  g6 {[%clk 0:02:55]} 4. c4 {[%clk 0:02:54]}  c6 {[%clk 0:02:49]} 5. g3 {[%clk 0:02:53]}  Bg7 {[%clk 0:02:47]} 6. Bg2 {[%clk 0:02:53]}  O-O {[%clk 0:02:47]} 7. O-O {[%clk 0:02:54]}  Bg4 {[%clk 0:02:43]} 8. d3 {[%clk 0:02:54]}  Nbd7 {[%clk 0:02:40]} 9. Nbd2 {[%clk 0:02:53]}  Re8 {[%clk 0:02:33]} 10. h3 {[%clk 0:02:46]}  Bxf3 {[%clk 0:02:32]} 11. Bxf3 {[%clk 0:02:37]}  e5 {[%clk 0:02:30]} 12. Bg2 {[%clk 0:02:36]}  Qe7 {[%clk 0:02:25]} 13. Rc1 {[%clk 0:02:29]}  d4 {[%clk 0:02:24]} 14. a3 {[%clk 0:02:24]}  a5 {[%clk 0:02:21]} 15. Qc2 {[%clk 0:02:21]}  Rad8 {[%clk 0:02:21]} 16. c5 {[%clk 0:02:18]}  Nd5 {[%clk 0:02:17]} 17. Ne4 {[%clk 0:02:16]}  f5 {[%clk 0:02:11]} 18. Nd6 {[%clk 0:02:13]}  Rf8 {[%clk 0:02:06]} 19. Nxb7 {[%clk 0:02:11]}  Rb8 {[%clk 0:02:06]} 20. Nxa5 {[%clk 0:02:07]}  Bh6 {[%clk 0:01:57]} 21. Nxc6 {[%clk 0:02:05]} 1-0


[Site "https://www.chess.com"]

[Event "Titled Tuesday Blitz June 27 Early 2023"]
[White "Rangel, Daniel"]
[Black "splendidkid"]
[WhiteFideId "2124475"]
[WhiteElo "2419"]
[BlackElo "2722"]
[Result "0-1"]
[Round "1"]
[TimeControl "180+2"]
[Date "2023.06.27"]
[WhiteClock "0:00:10"]
[BlackClock "0:00:31"]
[Board "110"]

1. c4 {[%clk 0:02:59]}  Nf6 {[%clk 0:02:56]} 2. g3 {[%clk 0:03:00]}  g6 {[%clk 0:02:57]} 3. Bg2 {[%clk 0:03:01]}  Bg7 {[%clk 0:02:57]} 4. Nc3 {[%clk 0:03:02]}  d6 {[%clk 0:02:58]} 5. e3 {[%clk 0:03:02]}  O-O {[%clk 0:02:59]} 6. Nge2 {[%clk 0:03:03]}  Nbd7 {[%clk 0:02:59]} 7. O-O {[%clk 0:03:04]}  e5 {[%clk 0:03:00]} 8. Rb1 {[%clk 0:03:04]}  Re8 {[%clk 0:02:58]} 9. b4 {[%clk 0:03:03]}  a5 {[%clk 0:02:58]} 10. b5 {[%clk 0:03:03]}  e4 {[%clk 0:02:58]} 11. Qc2 {[%clk 0:02:53]}  Nc5 {[%clk 0:02:53]} 12. Nf4 {[%clk 0:02:53]}  Bf5 {[%clk 0:02:51]} 13. Bb2 {[%clk 0:02:50]}  h5 {[%clk 0:02:49]} 14. Ncd5 {[%clk 0:02:49]}  h4 {[%clk 0:02:42]} 15. Nxf6+ {[%clk 0:02:42]}  Bxf6 {[%clk 0:02:43]} 16. Nd5 {[%clk 0:02:42]}  Be5 {[%clk 0:02:37]} 17. b6 {[%clk 0:02:31]}  cxb6 {[%clk 0:02:27]} 18. Nxb6 {[%clk 0:02:03]}  Ra6 {[%clk 0:02:17]} 19. Nd5 {[%clk 0:02:02]}  Be6 {[%clk 0:02:02]} 20. Bxe5 {[%clk 0:01:41]}  dxe5 {[%clk 0:02:03]} 21. Bxe4 {[%clk 0:01:41]}  Nxe4 {[%clk 0:01:38]} 22. Qxe4 {[%clk 0:01:42]}  Bf5 {[%clk 0:01:33]} 23. Qf3 {[%clk 0:01:37]}  Bxb1 {[%clk 0:01:23]} 24. Rxb1 {[%clk 0:01:38]}  Kg7 {[%clk 0:00:57]} 25. Rxb7 {[%clk 0:01:32]}  Rf8 {[%clk 0:00:58]} 26. Kg2 {[%clk 0:01:14]}  h3+ {[%clk 0:00:54]} 27. Kf1 {[%clk 0:00:57]}  Qc8 {[%clk 0:00:53]} 28. Rc7 {[%clk 0:00:42]}  Qb8 {[%clk 0:00:53]} 29. Qe4 {[%clk 0:00:33]}  Qb2 {[%clk 0:00:52]} 30. Ke2 {[%clk 0:00:26]}  Re6 {[%clk 0:00:48]} 31. Qg4 {[%clk 0:00:17]}  Rd6 {[%clk 0:00:34]} 32. Qxh3 {[%clk 0:00:17]}  Qc2 {[%clk 0:00:31]} 33. Rc5 {[%clk 0:00:10]}  Rxd5 {[%clk 0:00:29]} 34. Rxd5 {[%clk 0:00:09]}  Qxc4+ {[%clk 0:00:29]} 35. Rd3 {[%clk 0:00:09]}  e4 {[%clk 0:00:30]} 36. Qd7 {[%clk 0:00:09]}  exd3+ {[%clk 0:00:27]} 37. Qxd3 {[%clk 0:00:10]}  Qxa2 {[%clk 0:00:26]} 38. Qd4+ {[%clk 0:00:09]}  Kg8 {[%clk 0:00:26]} 39. h4 {[%clk 0:00:09]}  Rc8 {[%clk 0:00:25]} 40. h5 {[%clk 0:00:09]}  Qc4+ {[%clk 0:00:26]} 41. Qxc4 {[%clk 0:00:08]}  Rxc4 {[%clk 0:00:27]} 42. hxg6 {[%clk 0:00:09]}  fxg6 {[%clk 0:00:28]} 43. d4 {[%clk 0:00:10]}  a4 {[%clk 0:00:28]} 44. Kd3 {[%clk 0:00:10]}  Rc8 {[%clk 0:00:28]} 45. e4 {[%clk 0:00:10]}  a3 {[%clk 0:00:29]} 46. d5 {[%clk 0:00:11]}  a2 {[%clk 0:00:30]} 47. e5 {[%clk 0:00:11]}  a1=Q {[%clk 0:00:31]} 48. d6 {[%clk 0:00:12]}  Qd1+ {[%clk 0:00:30]} 49. Ke4 {[%clk 0:00:12]}  Rc2 {[%clk 0:00:31]} 50. f4 {[%clk 0:00:11]}  Re2+ {[%clk 0:00:32]} 51. Kf3 {[%clk 0:00:12]}  Qd3+ {[%clk 0:00:32]} 52. Kg4 {[%clk 0:00:12]}  Rg2 {[%clk 0:00:30]} 53. d7 {[%clk 0:00:09]}  Rxg3+ {[%clk 0:00:30]} 54. Kh4 {[%clk 0:00:09]}  Rh3+ {[%clk 0:00:31]} 55. Kg5 {[%clk 0:00:10]}  Qf5# {[%clk 0:00:31]} 0-1


[Site "https://www.chess.com"]